{"text_format":"3","workbook":"xlsx","n_sheets":3,"sheets":["تقرير الميزانية الشهرية","المصاريف الشهرية","بيانات إضافية"],"not_rendered":{"charts":1,"defined_names":4,"pivot_tables":2},"read":"whole","date_system":"1900"}

{"sheet":"تقرير الميزانية الشهرية","index":0,"n_rows":34,"n_cols":13,"rows_kept":34,"merged":[[7,1,10,1],[7,5,10,5],[7,6,10,6],[12,1,16,1],[12,5,16,5],[12,6,16,6]]}
[null,"نظرة عامة على الميزانية",{"$nulls":7},"ملخص الميزانية"]
[null,"الرصيد"]
[null,"الرصيد المتوقع","(المتوقع مطروحاً منه المصاريف)",{"$nulls":3},{"$f":"D17-SUM(BudgetDetails[التكلفة التقديرية])","v":{"v":1585,"d":" 1585.00 ر.س.‏"}}]
[null,"الرصيد الفعلي ","(الفعلي مطروحاً منه المصاريف)",{"$nulls":3},{"$f":"D11-SUM(BudgetDetails[التكلفة الفعلية])","v":{"v":1740,"d":" 1740.00 ر.س.‏"}}]
[null,"الفرق","(الفعلي مطروحاً منه المتوقع)",{"$nulls":3},{"$f":"G4-G3","v":{"v":155,"d":" 155.00 ر.س.‏"}}]
[]
[null,"الدخل",{"$nulls":3},"المصاريف",{"$nulls":3},"انقر بزر الماوس الأيمن فوق PivotTable أدناه ثم انقر فوق تحديث لإجراء التحديث"]
[null,"الفعلي","الدخل 1",{"v":5800,"d":" 5800 ر.س.‏"},null,"الفعلي",{"$f":"SUM(BudgetDetails[التكلفة الفعلية])","v":{"v":7860,"d":" 7860 ر.س.‏"}}]
[null,null,"الدخل 2",{"v":2300,"d":" 2300 ر.س.‏"},{"$nulls":5},"الفئة","مجموع من التكلفة التقديرية","مجموع من التكلفة الفعلية","مجموع من الفرق"]
[null,null,"الدخل الإضافي",{"v":1500,"d":" 1500 ر.س.‏"},{"$nulls":5},"الأطفال",{"v":140,"d":" 140 ر.س.‏"},{"v":140,"d":" 140 ر.س.‏"},{"v":0,"d":" 0 ر.س.‏"}]
[null,null,"إجمالي الدخل",{"$f":"SUM(D8:D10)","v":{"v":9600,"d":" 9600 ر.س.‏"}}]
[{"$nulls":9},"التأمين",{"v":900,"d":" 900 ر.س.‏"},{"v":900,"d":" 900 ر.س.‏"},{"v":0,"d":" 0 ر.س.‏"}]
[null,"المتوقع",{"$nulls":3},"المتوقع",{"$f":"SUM(BudgetDetails[التكلفة التقديرية])","v":{"v":7915,"d":" 7915 ر.س.‏"}}]
[null,null,"الدخل 1",{"v":6000,"d":" 6000 ر.س.‏"},{"$nulls":5},"التسلية",{"v":400,"d":" 400 ر.س.‏"},{"v":358,"d":" 358 ر.س.‏"},{"v":42,"d":" 42 ر.س.‏"}]
[null,null,"الدخل 2",{"v":1000,"d":" 1000 ر.س.‏"}]
[null,null,"الدخل الإضافي",{"v":2500,"d":" 2500 ر.س.‏"},{"$nulls":5},"الحيوانات الأليفة",{"v":170,"d":" 170 ر.س.‏"},{"v":100,"d":" 100 ر.س.‏"},{"v":70,"d":" 70 ر.س.‏"}]
[null,null,"إجمالي الدخل",{"$f":"SUM(D14:D16)","v":{"v":9500,"d":" 9500 ر.س.‏"}}]
[{"$nulls":9},"الرعاية الشخصية",{"v":150,"d":" 150 ر.س.‏"},{"v":140,"d":" 140 ر.س.‏"},{"v":10,"d":" 10 ر.س.‏"}]
[]
[{"$nulls":9},"السكن",{"v":2830,"d":" 2830 ر.س.‏"},{"v":2702,"d":" 2702 ر.س.‏"},{"v":128,"d":" 128 ر.س.‏"}]
[]
[{"$nulls":9},"الضرائب",{"v":300,"d":" 300 ر.س.‏"},{"v":300,"d":" 300 ر.س.‏"},{"v":0,"d":" 0 ر.س.‏"}]
[]
[{"$nulls":9},"الطعام",{"v":1100,"d":" 1100 ر.س.‏"},{"v":1320,"d":" 1320 ر.س.‏"},{"v":-220,"d":"( 220 ر.س.‏)"}]
[]
[{"$nulls":9},"القروض",{"v":200,"d":" 200 ر.س.‏"},{"v":200,"d":" 200 ر.س.‏"},{"v":0,"d":" 0 ر.س.‏"}]
[]
[{"$nulls":9},"المدخرات أو الاستثمارات",{"v":200,"d":" 200 ر.س.‏"},{"v":200,"d":" 200 ر.س.‏"},{"v":0,"d":" 0 ر.س.‏"}]
[]
[{"$nulls":9},"الهدايا والأعمال الخيرية",{"v":100,"d":" 100 ر.س.‏"},{"v":125,"d":" 125 ر.س.‏"},{"v":-25,"d":"( 25 ر.س.‏)"}]
[]
[{"$nulls":9},"وسيلة النقل",{"v":1425,"d":" 1425 ر.س.‏"},{"v":1375,"d":" 1375 ر.س.‏"},{"v":50,"d":" 50 ر.س.‏"}]
[]
[{"$nulls":9},"الإجمالي الكلي",{"v":7915,"d":" 7915 ر.س.‏"},{"v":7860,"d":" 7860 ر.س.‏"},{"v":55,"d":" 55 ر.س.‏"}]

{"sheet":"المصاريف الشهرية","index":1,"n_rows":62,"n_cols":7,"rows_kept":62}
[null,"المصاريف الشهرية"]
[null,"الوصف","الفئة","التكلفة التقديرية","التكلفة الفعلية","الفرق","نظرة عامة على التكلفة الفعلية"]
[null,"الأنشطة غير الروتينية","الأطفال",{"v":40,"d":" 40 ر.س.‏"},{"v":40,"d":" 40 ر.س.‏"},{"$f":"BudgetDetails[[#This Row],[التكلفة التقديرية]]-BudgetDetails[[#This Row],[التكلفة الفعلية]]","v":{"v":0,"d":" 0 ر.س.‏"}},{"$f":"BudgetDetails[[#This Row],[التكلفة الفعلية]]","v":{"v":40,"d":"$40"}}]
[null,"الرعاية الصحية","الأطفال",null,null,{"$f":"BudgetDetails[[#This Row],[التكلفة التقديرية]]-BudgetDetails[[#This Row],[التكلفة الفعلية]]","v":{"v":0,"d":" 0 ر.س.‏"}},{"$f":"BudgetDetails[[#This Row],[التكلفة الفعلية]]","v":{"v":0,"d":"$0"}}]
[null,"المستلزمات المدرسية","الأطفال",null,null,{"$f":"BudgetDetails[[#This Row],[التكلفة التقديرية]]-BudgetDetails[[#This Row],[التكلفة الفعلية]]","v":{"v":0,"d":" 0 ر.س.‏"}},{"$f":"BudgetDetails[[#This Row],[التكلفة الفعلية]]","v":{"v":0,"d":"$0"}}]
[null,"الرسوم الدراسية","الأطفال",{"v":100,"d":" 100 ر.س.‏"},{"v":100,"d":" 100 ر.س.‏"},{"$f":"BudgetDetails[[#This Row],[التكلفة التقديرية]]-BudgetDetails[[#This Row],[التكلفة الفعلية]]","v":{"v":0,"d":" 0 ر.س.‏"}},{"$f":"BudgetDetails[[#This Row],[التكلفة الفعلية]]","v":{"v":100,"d":"$100"}}]
[null,"الحفلات الموسيقية","التسلية",{"v":50,"d":" 50 ر.س.‏"},{"v":40,"d":" 40 ر.س.‏"},{"$f":"BudgetDetails[[#This Row],[التكلفة التقديرية]]-BudgetDetails[[#This Row],[التكلفة الفعلية]]","v":{"v":10,"d":" 10 ر.س.‏"}},{"$f":"BudgetDetails[[#This Row],[التكلفة الفعلية]]","v":{"v":40,"d":"$40"}}]
[null,"مسرح مباشر","التسلية",{"v":200,"d":" 200 ر.س.‏"},{"v":150,"d":" 150 ر.س.‏"},{"$f":"BudgetDetails[[#This Row],[التكلفة التقديرية]]-BudgetDetails[[#This Row],[التكلفة الفعلية]]","v":{"v":50,"d":" 50 ر.س.‏"}},{"$f":"BudgetDetails[[#This Row],[التكلفة الفعلية]]","v":{"v":150,"d":"$150"}}]
[null,"الأفلام","التسلية",{"v":50,"d":" 50 ر.س.‏"},{"v":28,"d":" 28 ر.س.‏"},{"$f":"BudgetDetails[[#This Row],[التكلفة التقديرية]]-BudgetDetails[[#This Row],[التكلفة الفعلية]]","v":{"v":22,"d":" 22 ر.س.‏"}},{"$f":"BudgetDetails[[#This Row],[التكلفة الفعلية]]","v":{"v":28,"d":"$28"}}]
[null,"الموسيقى (أقراص مضغوطة وتحميلات، إلخ)","التسلية",{"v":50,"d":" 50 ر.س.‏"},{"v":30,"d":" 30 ر.س.‏"},{"$f":"BudgetDetails[[#This Row],[التكلفة التقديرية]]-BudgetDetails[[#This Row],[التكلفة الفعلية]]","v":{"v":20,"d":" 20 ر.س.‏"}},{"$f":"BudgetDetails[[#This Row],[التكلفة الفعلية]]","v":{"v":30,"d":"$30"}}]
[null,"أحداث رياضية","التسلية",{"v":0,"d":" 0 ر.س.‏"},{"v":40,"d":" 40 ر.س.‏"},{"$f":"BudgetDetails[[#This Row],[التكلفة التقديرية]]-BudgetDetails[[#This Row],[التكلفة الفعلية]]","v":{"v":-40,"d":"( 40 ر.س.‏)"}},{"$f":"BudgetDetails[[#This Row],[التكلفة الفعلية]]","v":{"v":40,"d":"$40"}}]
[null,"فيديو/DVD (شراء)","التسلية",{"v":20,"d":" 20 ر.س.‏"},{"v":50,"d":" 50 ر.س.‏"},{"$f":"BudgetDetails[[#This Row],[التكلفة التقديرية]]-BudgetDetails[[#This Row],[التكلفة الفعلية]]","v":{"v":-30,"d":"( 30 ر.س.‏)"}},{"$f":"BudgetDetails[[#This Row],[التكلفة الفعلية]]","v":{"v":50,"d":"$50"}}]
[null,"فيديو/DVD (إيجار)","التسلية",{"v":30,"d":" 30 ر.س.‏"},{"v":20,"d":" 20 ر.س.‏"},{"$f":"BudgetDetails[[#This Row],[التكلفة التقديرية]]-BudgetDetails[[#This Row],[التكلفة الفعلية]]","v":{"v":10,"d":" 10 ر.س.‏"}},{"$f":"BudgetDetails[[#This Row],[التكلفة الفعلية]]","v":{"v":20,"d":"$20"}}]
[null,"تناول الطعام بالخارج","الطعام",{"v":1000,"d":" 1000 ر.س.‏"},{"v":1200,"d":" 1200 ر.س.‏"},{"$f":"BudgetDetails[[#This Row],[التكلفة التقديرية]]-BudgetDetails[[#This Row],[التكلفة الفعلية]]","v":{"v":-200,"d":"( 200 ر.س.‏)"}},{"$f":"BudgetDetails[[#This Row],[التكلفة الفعلية]]","v":{"v":1200,"d":"$1,200"}}]
[null,"البقالة","الطعام",{"v":100,"d":" 100 ر.س.‏"},{"v":120,"d":" 120 ر.س.‏"},{"$f":"BudgetDetails[[#This Row],[التكلفة التقديرية]]-BudgetDetails[[#This Row],[التكلفة الفعلية]]","v":{"v":-20,"d":"( 20 ر.س.‏)"}},{"$f":"BudgetDetails[[#This Row],[التكلفة الفعلية]]","v":{"v":120,"d":"$120"}}]
[null,"عمل خيري 1","الهدايا والأعمال الخيرية",{"v":75,"d":" 75 ر.س.‏"},{"v":100,"d":" 100 ر.س.‏"},{"$f":"BudgetDetails[[#This Row],[التكلفة التقديرية]]-BudgetDetails[[#This Row],[التكلفة الفعلية]]","v":{"v":-25,"d":"( 25 ر.س.‏)"}},{"$f":"BudgetDetails[[#This Row],[التكلفة الفعلية]]","v":{"v":100,"d":"$100"}}]
[null,"عمل خيري 2","الهدايا والأعمال الخيرية",{"v":25,"d":" 25 ر.س.‏"},{"v":25,"d":" 25 ر.س.‏"},{"$f":"BudgetDetails[[#This Row],[التكلفة التقديرية]]-BudgetDetails[[#This Row],[التكلفة الفعلية]]","v":{"v":0,"d":" 0 ر.س.‏"}},{"$f":"BudgetDetails[[#This Row],[التكلفة الفعلية]]","v":{"v":25,"d":"$25"}}]
[null,"الهدية 1","الهدايا والأعمال الخيرية",null,null,{"$f":"BudgetDetails[[#This Row],[التكلفة التقديرية]]-BudgetDetails[[#This Row],[التكلفة الفعلية]]","v":{"v":0,"d":" 0 ر.س.‏"}},{"$f":"BudgetDetails[[#This Row],[التكلفة الفعلية]]","v":{"v":0,"d":"$0"}}]
[null,"الهدية 2","الهدايا والأعمال الخيرية",null,null,{"$f":"BudgetDetails[[#This Row],[التكلفة التقديرية]]-BudgetDetails[[#This Row],[التكلفة الفعلية]]","v":{"v":0,"d":" 0 ر.س.‏"}},{"$f":"BudgetDetails[[#This Row],[التكلفة الفعلية]]","v":{"v":0,"d":"$0"}}]
[null,"كبلات التلفاز/القمر الصناعي","السكن",{"v":100,"d":" 100 ر.س.‏"},{"v":100,"d":" 100 ر.س.‏"},{"$f":"BudgetDetails[[#This Row],[التكلفة التقديرية]]-BudgetDetails[[#This Row],[التكلفة الفعلية]]","v":{"v":0,"d":" 0 ر.س.‏"}},{"$f":"BudgetDetails[[#This Row],[التكلفة الفعلية]]","v":{"v":100,"d":"$100"}}]
[null,"الكهرباء","السكن",{"v":45,"d":" 45 ر.س.‏"},{"v":50,"d":" 50 ر.س.‏"},{"$f":"BudgetDetails[[#This Row],[التكلفة التقديرية]]-BudgetDetails[[#This Row],[التكلفة الفعلية]]","v":{"v":-5,"d":"( 5 ر.س.‏)"}},{"$f":"BudgetDetails[[#This Row],[التكلفة الفعلية]]","v":{"v":50,"d":"$50"}}]
[null,"الغاز","السكن",{"v":300,"d":" 300 ر.س.‏"},{"v":400,"d":" 400 ر.س.‏"},{"$f":"BudgetDetails[[#This Row],[التكلفة التقديرية]]-BudgetDetails[[#This Row],[التكلفة الفعلية]]","v":{"v":-100,"d":"( 100 ر.س.‏)"}},{"$f":"BudgetDetails[[#This Row],[التكلفة الفعلية]]","v":{"v":400,"d":"$400"}}]
[null,"خدمة تنظيف المنزل","السكن",{"v":200,"d":" 200 ر.س.‏"},null,{"$f":"BudgetDetails[[#This Row],[التكلفة التقديرية]]-BudgetDetails[[#This Row],[التكلفة الفعلية]]","v":{"v":200,"d":" 200 ر.س.‏"}},{"$f":"BudgetDetails[[#This Row],[التكلفة الفعلية]]","v":{"v":0,"d":"$0"}}]
[null,"الصيانة","السكن",{"v":200,"d":" 200 ر.س.‏"},{"v":150,"d":" 150 ر.س.‏"},{"$f":"BudgetDetails[[#This Row],[التكلفة التقديرية]]-BudgetDetails[[#This Row],[التكلفة الفعلية]]","v":{"v":50,"d":" 50 ر.س.‏"}},{"$f":"BudgetDetails[[#This Row],[التكلفة الفعلية]]","v":{"v":150,"d":"$150"}}]
[null,"الرهن أو الإيجار","السكن",{"v":1700,"d":" 1700 ر.س.‏"},{"v":1700,"d":" 1700 ر.س.‏"},{"$f":"BudgetDetails[[#This Row],[التكلفة التقديرية]]-BudgetDetails[[#This Row],[التكلفة الفعلية]]","v":{"v":0,"d":" 0 ر.س.‏"}},{"$f":"BudgetDetails[[#This Row],[التكلفة الفعلية]]","v":{"v":1700,"d":"$1,700"}}]
[null,"الغاز الطبيعي/البترول","السكن",null,null,{"$f":"BudgetDetails[[#This Row],[التكلفة التقديرية]]-BudgetDetails[[#This Row],[التكلفة الفعلية]]","v":{"v":0,"d":" 0 ر.س.‏"}},{"$f":"BudgetDetails[[#This Row],[التكلفة الفعلية]]","v":{"v":0,"d":"$0"}}]
[null,"خدمة الاتصال/الإنترنت","السكن",{"v":100,"d":" 100 ر.س.‏"},{"v":100,"d":" 100 ر.س.‏"},{"$f":"BudgetDetails[[#This Row],[التكلفة التقديرية]]-BudgetDetails[[#This Row],[التكلفة الفعلية]]","v":{"v":0,"d":" 0 ر.س.‏"}},{"$f":"BudgetDetails[[#This Row],[التكلفة الفعلية]]","v":{"v":100,"d":"$100"}}]
[null,"هاتف (خلوي)","السكن",{"v":60,"d":" 60 ر.س.‏"},{"v":60,"d":" 60 ر.س.‏"},{"$f":"BudgetDetails[[#This Row],[التكلفة التقديرية]]-BudgetDetails[[#This Row],[التكلفة الفعلية]]","v":{"v":0,"d":" 0 ر.س.‏"}},{"$f":"BudgetDetails[[#This Row],[التكلفة الفعلية]]","v":{"v":60,"d":"$60"}}]
[null,"هاتف (المنزل)","السكن",{"v":35,"d":" 35 ر.س.‏"},{"v":39,"d":" 39 ر.س.‏"},{"$f":"BudgetDetails[[#This Row],[التكلفة التقديرية]]-BudgetDetails[[#This Row],[التكلفة الفعلية]]","v":{"v":-4,"d":"( 4 ر.س.‏)"}},{"$f":"BudgetDetails[[#This Row],[التكلفة الفعلية]]","v":{"v":39,"d":"$39"}}]
[null,"التجهيزات","السكن",{"v":40,"d":" 40 ر.س.‏"},{"v":55,"d":" 55 ر.س.‏"},{"$f":"BudgetDetails[[#This Row],[التكلفة التقديرية]]-BudgetDetails[[#This Row],[التكلفة الفعلية]]","v":{"v":-15,"d":"( 15 ر.س.‏)"}},{"$f":"BudgetDetails[[#This Row],[التكلفة الفعلية]]","v":{"v":55,"d":"$55"}}]
[null,"إزالة المخلفات وإعادة التدوير","السكن",{"v":25,"d":" 25 ر.س.‏"},{"v":22,"d":" 22 ر.س.‏"},{"$f":"BudgetDetails[[#This Row],[التكلفة التقديرية]]-BudgetDetails[[#This Row],[التكلفة الفعلية]]","v":{"v":3,"d":" 3 ر.س.‏"}},{"$f":"BudgetDetails[[#This Row],[التكلفة الفعلية]]","v":{"v":22,"d":"$22"}}]
[null,"المياه والصرف","السكن",{"v":25,"d":" 25 ر.س.‏"},{"v":26,"d":" 26 ر.س.‏"},{"$f":"BudgetDetails[[#This Row],[التكلفة التقديرية]]-BudgetDetails[[#This Row],[التكلفة الفعلية]]","v":{"v":-1,"d":"( 1 ر.س.‏)"}},{"$f":"BudgetDetails[[#This Row],[التكلفة الفعلية]]","v":{"v":26,"d":"$26"}}]
[null,"الصحة","التأمين",{"v":400,"d":" 400 ر.س.‏"},{"v":400,"d":" 400 ر.س.‏"},{"$f":"BudgetDetails[[#This Row],[التكلفة التقديرية]]-BudgetDetails[[#This Row],[التكلفة الفعلية]]","v":{"v":0,"d":" 0 ر.س.‏"}},{"$f":"BudgetDetails[[#This Row],[التكلفة الفعلية]]","v":{"v":400,"d":"$400"}}]
[null,"المنزل","التأمين",{"v":400,"d":" 400 ر.س.‏"},{"v":400,"d":" 400 ر.س.‏"},{"$f":"BudgetDetails[[#This Row],[التكلفة التقديرية]]-BudgetDetails[[#This Row],[التكلفة الفعلية]]","v":{"v":0,"d":" 0 ر.س.‏"}},{"$f":"BudgetDetails[[#This Row],[التكلفة الفعلية]]","v":{"v":400,"d":"$400"}}]
[null,"الحياة","التأمين",{"v":100,"d":" 100 ر.س.‏"},{"v":100,"d":" 100 ر.س.‏"},{"$f":"BudgetDetails[[#This Row],[التكلفة التقديرية]]-BudgetDetails[[#This Row],[التكلفة الفعلية]]","v":{"v":0,"d":" 0 ر.س.‏"}},{"$f":"BudgetDetails[[#This Row],[التكلفة الفعلية]]","v":{"v":100,"d":"$100"}}]
[null,"بطاقة الائتمان 1","القروض",{"v":200,"d":" 200 ر.س.‏"},{"v":200,"d":" 200 ر.س.‏"},{"$f":"BudgetDetails[[#This Row],[التكلفة التقديرية]]-BudgetDetails[[#This Row],[التكلفة الفعلية]]","v":{"v":0,"d":" 0 ر.س.‏"}},{"$f":"BudgetDetails[[#This Row],[التكلفة الفعلية]]","v":{"v":200,"d":"$200"}}]
[null,"بطاقة الائتمان 2","القروض",null,null,{"$f":"BudgetDetails[[#This Row],[التكلفة التقديرية]]-BudgetDetails[[#This Row],[التكلفة الفعلية]]","v":{"v":0,"d":" 0 ر.س.‏"}},{"$f":"BudgetDetails[[#This Row],[التكلفة الفعلية]]","v":{"v":0,"d":"$0"}}]
[null,"بطاقة الائتمان 3","القروض",null,null,{"$f":"BudgetDetails[[#This Row],[التكلفة التقديرية]]-BudgetDetails[[#This Row],[التكلفة الفعلية]]","v":{"v":0,"d":" 0 ر.س.‏"}},{"$f":"BudgetDetails[[#This Row],[التكلفة الفعلية]]","v":{"v":0,"d":"$0"}}]
[null,"شخصي","القروض",null,null,{"$f":"BudgetDetails[[#This Row],[التكلفة التقديرية]]-BudgetDetails[[#This Row],[التكلفة الفعلية]]","v":{"v":0,"d":" 0 ر.س.‏"}},{"$f":"BudgetDetails[[#This Row],[التكلفة الفعلية]]","v":{"v":0,"d":"$0"}}]
[null,"طالب","القروض",null,null,{"$f":"BudgetDetails[[#This Row],[التكلفة التقديرية]]-BudgetDetails[[#This Row],[التكلفة الفعلية]]","v":{"v":0,"d":" 0 ر.س.‏"}},{"$f":"BudgetDetails[[#This Row],[التكلفة الفعلية]]","v":{"v":0,"d":"$0"}}]
[null,"الملابس","الرعاية الشخصية",{"v":150,"d":" 150 ر.س.‏"},{"v":140,"d":" 140 ر.س.‏"},{"$f":"BudgetDetails[[#This Row],[التكلفة التقديرية]]-BudgetDetails[[#This Row],[التكلفة الفعلية]]","v":{"v":10,"d":" 10 ر.س.‏"}},{"$f":"BudgetDetails[[#This Row],[التكلفة الفعلية]]","v":{"v":140,"d":"$140"}}]
[null,"التنظيف الجاف","الرعاية الشخصية",null,null,{"$f":"BudgetDetails[[#This Row],[التكلفة التقديرية]]-BudgetDetails[[#This Row],[التكلفة الفعلية]]","v":{"v":0,"d":" 0 ر.س.‏"}},{"$f":"BudgetDetails[[#This Row],[التكلفة الفعلية]]","v":{"v":0,"d":"$0"}}]
[null,"الشعر/الأظافر","الرعاية الشخصية",null,null,{"$f":"BudgetDetails[[#This Row],[التكلفة التقديرية]]-BudgetDetails[[#This Row],[التكلفة الفعلية]]","v":{"v":0,"d":" 0 ر.س.‏"}},{"$f":"BudgetDetails[[#This Row],[التكلفة الفعلية]]","v":{"v":0,"d":"$0"}}]
[null,"النادي الصحي","الرعاية الشخصية",null,null,{"$f":"BudgetDetails[[#This Row],[التكلفة التقديرية]]-BudgetDetails[[#This Row],[التكلفة الفعلية]]","v":{"v":0,"d":" 0 ر.س.‏"}},{"$f":"BudgetDetails[[#This Row],[التكلفة الفعلية]]","v":{"v":0,"d":"$0"}}]
[null,"الرعاية الصحية","الرعاية الشخصية",null,null,{"$f":"BudgetDetails[[#This Row],[التكلفة التقديرية]]-BudgetDetails[[#This Row],[التكلفة الفعلية]]","v":{"v":0,"d":" 0 ر.س.‏"}},{"$f":"BudgetDetails[[#This Row],[التكلفة الفعلية]]","v":{"v":0,"d":"$0"}}]
[null,"الطعام","الحيوانات الأليفة",{"v":150,"d":" 150 ر.س.‏"},{"v":75,"d":" 75 ر.س.‏"},{"$f":"BudgetDetails[[#This Row],[التكلفة التقديرية]]-BudgetDetails[[#This Row],[التكلفة الفعلية]]","v":{"v":75,"d":" 75 ر.س.‏"}},{"$f":"BudgetDetails[[#This Row],[التكلفة الفعلية]]","v":{"v":75,"d":"$75"}}]
[null,"العناية","الحيوانات الأليفة",{"v":20,"d":" 20 ر.س.‏"},{"v":25,"d":" 25 ر.س.‏"},{"$f":"BudgetDetails[[#This Row],[التكلفة التقديرية]]-BudgetDetails[[#This Row],[التكلفة الفعلية]]","v":{"v":-5,"d":"( 5 ر.س.‏)"}},{"$f":"BudgetDetails[[#This Row],[التكلفة الفعلية]]","v":{"v":25,"d":"$25"}}]
[null,"الرعاية الصحية","الحيوانات الأليفة",null,null,{"$f":"BudgetDetails[[#This Row],[التكلفة التقديرية]]-BudgetDetails[[#This Row],[التكلفة الفعلية]]","v":{"v":0,"d":" 0 ر.س.‏"}},{"$f":"BudgetDetails[[#This Row],[التكلفة الفعلية]]","v":{"v":0,"d":"$0"}}]
[null,"الألعاب","الحيوانات الأليفة",null,null,{"$f":"BudgetDetails[[#This Row],[التكلفة التقديرية]]-BudgetDetails[[#This Row],[التكلفة الفعلية]]","v":{"v":0,"d":" 0 ر.س.‏"}},{"$f":"BudgetDetails[[#This Row],[التكلفة الفعلية]]","v":{"v":0,"d":"$0"}}]
[null,"حساب الاستثمار","المدخرات أو الاستثمارات",{"v":200,"d":" 200 ر.س.‏"},{"v":200,"d":" 200 ر.س.‏"},{"$f":"BudgetDetails[[#This Row],[التكلفة التقديرية]]-BudgetDetails[[#This Row],[التكلفة الفعلية]]","v":{"v":0,"d":" 0 ر.س.‏"}},{"$f":"BudgetDetails[[#This Row],[التكلفة الفعلية]]","v":{"v":200,"d":"$200"}}]
[null,"حساب التقاعد","المدخرات أو الاستثمارات",null,null,{"$f":"BudgetDetails[[#This Row],[التكلفة التقديرية]]-BudgetDetails[[#This Row],[التكلفة الفعلية]]","v":{"v":0,"d":" 0 ر.س.‏"}},{"$f":"BudgetDetails[[#This Row],[التكلفة الفعلية]]","v":{"v":0,"d":"$0"}}]
[null,"فدرالي","الضرائب",{"v":300,"d":" 300 ر.س.‏"},{"v":300,"d":" 300 ر.س.‏"},{"$f":"BudgetDetails[[#This Row],[التكلفة التقديرية]]-BudgetDetails[[#This Row],[التكلفة الفعلية]]","v":{"v":0,"d":" 0 ر.س.‏"}},{"$f":"BudgetDetails[[#This Row],[التكلفة الفعلية]]","v":{"v":300,"d":"$300"}}]
[null,"محلي","الضرائب",null,null,{"$f":"BudgetDetails[[#This Row],[التكلفة التقديرية]]-BudgetDetails[[#This Row],[التكلفة الفعلية]]","v":{"v":0,"d":" 0 ر.س.‏"}},{"$f":"BudgetDetails[[#This Row],[التكلفة الفعلية]]","v":{"v":0,"d":"$0"}}]
[null,"الولاية","الضرائب",null,null,{"$f":"BudgetDetails[[#This Row],[التكلفة التقديرية]]-BudgetDetails[[#This Row],[التكلفة الفعلية]]","v":{"v":0,"d":" 0 ر.س.‏"}},{"$f":"BudgetDetails[[#This Row],[التكلفة الفعلية]]","v":{"v":0,"d":"$0"}}]
[null,"أجرة الحافلة/التاكسي","وسيلة النقل",{"v":100,"d":" 100 ر.س.‏"},{"v":150,"d":" 150 ر.س.‏"},{"$f":"BudgetDetails[[#This Row],[التكلفة التقديرية]]-BudgetDetails[[#This Row],[التكلفة الفعلية]]","v":{"v":-50,"d":"( 50 ر.س.‏)"}},{"$f":"BudgetDetails[[#This Row],[التكلفة الفعلية]]","v":{"v":150,"d":"$150"}}]
[null,"الوقود","وسيلة النقل",{"v":450,"d":" 450 ر.س.‏"},{"v":400,"d":" 400 ر.س.‏"},{"$f":"BudgetDetails[[#This Row],[التكلفة التقديرية]]-BudgetDetails[[#This Row],[التكلفة الفعلية]]","v":{"v":50,"d":" 50 ر.س.‏"}},{"$f":"BudgetDetails[[#This Row],[التكلفة الفعلية]]","v":{"v":400,"d":"$400"}}]
[null,"التأمين","وسيلة النقل",{"v":300,"d":" 300 ر.س.‏"},{"v":300,"d":" 300 ر.س.‏"},{"$f":"BudgetDetails[[#This Row],[التكلفة التقديرية]]-BudgetDetails[[#This Row],[التكلفة الفعلية]]","v":{"v":0,"d":" 0 ر.س.‏"}},{"$f":"BudgetDetails[[#This Row],[التكلفة الفعلية]]","v":{"v":300,"d":"$300"}}]
[null,"الترخيص ","وسيلة النقل",{"v":25,"d":" 25 ر.س.‏"},{"v":25,"d":" 25 ر.س.‏"},{"$f":"BudgetDetails[[#This Row],[التكلفة التقديرية]]-BudgetDetails[[#This Row],[التكلفة الفعلية]]","v":{"v":0,"d":" 0 ر.س.‏"}},{"$f":"BudgetDetails[[#This Row],[التكلفة الفعلية]]","v":{"v":25,"d":"$25"}}]
[null,"الصيانة","وسيلة النقل",{"v":100,"d":" 100 ر.س.‏"},{"v":50,"d":" 50 ر.س.‏"},{"$f":"BudgetDetails[[#This Row],[التكلفة التقديرية]]-BudgetDetails[[#This Row],[التكلفة الفعلية]]","v":{"v":50,"d":" 50 ر.س.‏"}},{"$f":"BudgetDetails[[#This Row],[التكلفة الفعلية]]","v":{"v":50,"d":"$50"}}]
[null,"رسوم أماكن انتظار السيارات","وسيلة النقل",null,null,{"$f":"BudgetDetails[[#This Row],[التكلفة التقديرية]]-BudgetDetails[[#This Row],[التكلفة الفعلية]]","v":{"v":0,"d":" 0 ر.س.‏"}},{"$f":"BudgetDetails[[#This Row],[التكلفة الفعلية]]","v":{"v":0,"d":"$0"}}]
[null,"قسط السيارة","وسيلة النقل",{"v":450,"d":" 450 ر.س.‏"},{"v":450,"d":" 450 ر.س.‏"},{"$f":"BudgetDetails[[#This Row],[التكلفة التقديرية]]-BudgetDetails[[#This Row],[التكلفة الفعلية]]","v":{"v":0,"d":" 0 ر.س.‏"}},{"$f":"BudgetDetails[[#This Row],[التكلفة الفعلية]]","v":{"v":450,"d":"$450"}}]
[null,"الإجمالي",null,{"$f":"SUBTOTAL(109,BudgetDetails[التكلفة التقديرية])","v":{"v":7915,"d":" 7915 ر.س.‏"}},{"$f":"SUBTOTAL(109,BudgetDetails[التكلفة الفعلية])","v":{"v":7860,"d":" 7860 ر.س.‏"}},{"$f":"SUBTOTAL(109,BudgetDetails[الفرق])","v":{"v":55,"d":" 55 ر.س.‏"}}]

{"sheet":"بيانات إضافية","index":2,"n_rows":15,"n_cols":5,"rows_kept":15}
[null,"PivotTable لمخطط نظرة عامة على الميزانية",null,null,"قائمة بحث لفئة تفاصيل الميزانية"]
[null,"الفئة","التكلفة",null,"بحث فئة الميزانية"]
[null,"الأطفال",140,null,"الأطفال"]
[null,"التأمين",900,null,"التسلية"]
[null,"التسلية",358,null,"الطعام"]
[null,"الحيوانات الأليفة",100,null,"الهدايا والأعمال الخيرية"]
[null,"الرعاية الشخصية",140,null,"السكن"]
[null,"السكن",2702,null,"التأمين"]
[null,"الضرائب",300,null,"القروض"]
[null,"الطعام",1320,null,"الرعاية الشخصية"]
[null,"القروض",200,null,"الحيوانات الأليفة"]
[null,"المدخرات أو الاستثمارات",200,null,"المدخرات أو الاستثمارات"]
[null,"الهدايا والأعمال الخيرية",125,null,"الضرائب"]
[null,"وسيلة النقل",1375,null,"وسيلة النقل"]
[null,"الإجمالي الكلي",7860]